fUST/lending_fUST_20250422
["ID","MTS","AMOUNT","RATE_DAILY","PERIOD"]
[358646775,1745334643602,-554.32,0.00022465,2]
[358646778,1745334643613,-4450.75,0.00022465,2]
[358646780,1745334643623,-500.0,0.00022465,2]
[358646781,1745334643633,-151.0,0.00022465,7]
[358646782,1745334643647,-516.69,0.00022465,2]
[358646783,1745334643658,-500.0,0.00022465,2]
[358646784,1745334643667,-826.79,0.00022465,2]
[358646786,1745334643677,-500.0,0.00022465,2]
[358646787,1745334643687,-500.0,0.00022465,2]
[358646789,1745334643697,-500.0,0.00022466,2]
[358646791,1745334643707,-300.0513796,0.00022466,2]
[358646793,1745334643717,-151.0,0.00022466,2]
[358646795,1745334643727,-151.0,0.00022466,2]
[358646797,1745334643737,-151.18606492,0.00022466,2]
[358646799,1745334643747,-151.0,0.00022466,2]
[358646800,1745334643757,-604.0,0.00022466,2]
[358646802,1745334643767,-500.0,0.00022466,2]
[358646804,1745334643776,-151.0,0.00022466,7]
[358646806,1745334643786,-1553.43899553,0.00022639,2]
[358646808,1745334643797,-420.0,0.00022733,2]
[358646810,1745334643806,-500.0,0.00022739,2]
[358646812,1745334643816,-500.0,0.00022739,2]
[358646814,1745334643826,-500.0,0.00022739,2]
[358646816,1745334643835,-500.0,0.00022739,2]
[358646818,1745334643844,-535.14,0.00022739,2]
[358646820,1745334643854,-500.0,0.00022739,2]
[358646822,1745334643864,-500.0,0.00022739,2]
[358646823,1745334643873,-167.65346591,0.00022739,2]
[358646824,1745334643883,-500.0,0.00022739,2]
[358646825,1745334643893,-584.44,0.00022739,2]
[358646826,1745334643904,-500.0,0.00022739,2]
[358646827,1745334643914,-519.12,0.00022739,2]
[358646828,1745334643923,-500.0,0.00022739,2]
[358646829,1745334643932,-856.1,0.00022739,2]
[358646830,1745334643941,-645.74,0.00022739,2]
[358646831,1745334643951,-535.06,0.00022739,2]
[358646832,1745334643960,-500.0,0.00022739,2]
[358646833,1745334643970,-500.0,0.00022739,2]
[358646834,1745334643980,-500.0,0.00022739,2]
[358646835,1745334643990,-672.1,0.00022739,2]
[358646836,1745334644001,-500.0,0.00022739,2]
[358646837,1745334644011,-500.0,0.00022739,2]
[358646838,1745334644020,-3291.59,0.00022739,2]
[358646839,1745334644030,-1353.78,0.00022739,2]
[358646840,1745334644039,-510.96,0.00022739,2]
[358646841,1745334644049,-500.0,0.00022739,2]
[358646842,1745334644059,-3365.52,0.00022739,2]
[358646843,1745334644070,-500.0,0.00022739,2]
[358646844,1745334644080,-500.0,0.00022739,2]
[358646845,1745334644090,-500.0,0.00022739,2]
[358646846,1745334644101,-8479.44,0.00022739,2]
[358646847,1745334644111,-500.0,0.00022739,2]
[358646848,1745334644122,-506.86,0.00022739,2]
[358646849,1745334644132,-2355.44,0.00022739,2]
[358646850,1745334644142,-500.0,0.00022739,2]
[358646851,1745334644154,-500.0,0.00022739,2]
[358646852,1745334644163,-500.0,0.00022739,2]
[358646853,1745334644173,-500.0,0.00022739,2]
[358646854,1745334644183,-540.25,0.00022739,2]
[358646855,1745334644193,-196.34559666,0.00022739,2]
[358646856,1745334644203,-500.0,0.00022739,2]
[358646857,1745334644213,-534.5,0.00022739,2]
[358646858,1745334644222,-500.0,0.00022739,2]
[358646859,1745334644232,-500.0,0.00022739,2]
[358646860,1745334644242,-500.0,0.00022739,2]
[358646861,1745334644252,-162.66506386,0.00022739,2]
[358646862,1745334644262,-500.0,0.00022739,2]
[358646863,1745334644271,-1304.33,0.00022739,2]
[358646864,1745334644281,-2433.23,0.00022739,2]
[358646865,1745334644292,-500.0,0.00022739,2]
[358646866,1745334644303,-253.67071364,0.00022739,2]
[358646867,1745334644312,-500.0,0.00022739,2]
[358646868,1745334644322,-500.0,0.00022739,2]
[358646869,1745334644332,-500.0,0.00022739,2]
[358646870,1745334644342,-500.0,0.00022739,2]
[358646871,1745334644352,-500.0,0.00022739,2]
[358646872,1745334644362,-1220.55,0.00022739,2]
[358646873,1745334644371,-500.0,0.00022739,2]
[358646874,1745334644381,-1579.47,0.00022739,2]
[358646875,1745334644391,-500.0,0.00022739,2]
[358646876,1745334644401,-554.32,0.00022739,2]
[358646877,1745334644411,-500.0,0.00022739,2]
[358646878,1745334644421,-4450.75,0.00022739,2]
[358646879,1745334644431,-516.69,0.00022739,2]
[358646880,1745334644440,-500.0,0.00022739,2]
[358646881,1745334644449,-826.79,0.00022739,2]
[358646882,1745334644460,-500.0,0.00022739,2]
[358646883,1745334644469,-500.0,0.00022739,2]
[358646884,1745334644479,-1485.7497107,0.00022818,2]
[358646885,1745334644492,-25020.0,0.0002287,2]
[358646886,1745334644503,-151.0,0.0002287,7]
[358646887,1745334644514,-493.326,0.00022883,2]
[358646888,1745334644525,-184.116,0.000229,2]
[358646889,1745334644536,-160.0,0.00022959,2]
[358646890,1745334644546,-395.86890468,0.00022959,2]
[358646891,1745334644556,-1000.0,0.00023,3]
[358646892,1745334644566,-151.0,0.00023,9]
[358646893,1745334644577,-420.73667954,0.00023,3]
[358646894,1745334644587,-160.0,0.00023,3]
[358646895,1745334644597,-505.405,0.00023001,2]
[358646896,1745334644606,-285.222489,0.00023013,7]
[358646897,1745334644616,-334.787569,0.00023013,2]
[358646898,1745334644626,-334.787569,0.00023013,2]
[358646899,1745334644636,-500.0,0.00023013,2]
[358646900,1745334644645,-500.0,0.00023013,2]
[358646901,1745334644656,-500.0,0.00023013,2]
[358646902,1745334644667,-500.0,0.00023013,2]
[358646903,1745334644677,-535.14,0.00023013,2]
[358646904,1745334644687,-500.0,0.00023013,2]
[358646905,1745334644697,-500.0,0.00023013,2]
[358646906,1745334644706,-500.0,0.00023013,2]
[358646907,1745334644716,-584.44,0.00023013,2]
[358646908,1745334644726,-500.0,0.00023013,2]
[358646909,1745334644736,-519.12,0.00023013,2]
[358646910,1745334644746,-500.0,0.00023013,2]
[358646911,1745334644756,-856.1,0.00023013,2]
[358646912,1745334644894,-535.06,0.00023013,2]
[358646913,1745334644907,-500.0,0.00023013,2]
[358646914,1745334644917,-500.0,0.00023013,2]
[358646915,1745334644927,-500.0,0.00023013,2]
[358646916,1745334644937,-672.1,0.00023013,2]
[358646917,1745334644947,-500.0,0.00023013,2]
[358646918,1745334644956,-500.0,0.00023013,2]
[358646919,1745334644966,-3291.59,0.00023013,2]
[358646920,1745334644975,-1353.78,0.00023013,2]
[358646921,1745334644985,-510.96,0.00023013,2]
[358646922,1745334644995,-500.0,0.00023013,2]
[358646923,1745334645005,-3365.52,0.00023013,2]
[358646924,1745334645015,-500.0,0.00023013,2]
[358646925,1745334645024,-500.0,0.00023013,2]
[358646926,1745334645034,-500.0,0.00023013,2]
[358646927,1745334645044,-8479.44,0.00023013,2]
[358646928,1745334645053,-500.0,0.00023013,2]
[358646929,1745334645063,-506.86,0.00023013,2]
[358646930,1745334645073,-2355.44,0.00023013,2]
[358646931,1745334645082,-500.0,0.00023013,2]
[358646932,1745334645092,-500.0,0.00023013,2]
[358646933,1745334645102,-500.0,0.00023013,2]
[358646934,1745334645112,-500.0,0.00023013,2]
[358646935,1745334645122,-540.25,0.00023013,2]
[358646936,1745334645132,-500.0,0.00023013,2]
[358646937,1745334645142,-534.5,0.00023013,2]
[358646938,1745334645154,-500.0,0.00023013,2]
[358646939,1745334645164,-500.0,0.00023013,2]
[358646940,1745334645174,-500.0,0.00023013,2]
[358646941,1745334645184,-500.0,0.00023013,2]
[358646942,1745334645193,-1304.33,0.00023013,2]
[358646943,1745334645203,-2433.23,0.00023013,2]
[358646944,1745334645213,-500.0,0.00023013,2]
[358646945,1745334645222,-500.0,0.00023013,2]
[358646946,1745334645232,-500.0,0.00023013,2]
[358646947,1745334645242,-500.0,0.00023013,2]
[358646948,1745334645251,-500.0,0.00023013,2]
[358646949,1745334645261,-500.0,0.00023013,2]
[358646950,1745334645271,-1220.55,0.00023013,2]
[358646951,1745334645281,-500.0,0.00023013,2]
[358646952,1745334645291,-1579.47,0.00023013,2]
[358646953,1745334645300,-500.0,0.00023013,2]
[358646954,1745334645310,-554.32,0.00023013,2]
[358646955,1745334645319,-4450.75,0.00023013,2]
[358646956,1745334645329,-516.69,0.00023013,2]
[358646957,1745334645339,-500.0,0.00023013,2]
[358646958,1745334645349,-826.79,0.00023013,2]
[358646959,1745334645359,-500.0,0.00023013,2]
[358646960,1745334645368,-500.0,0.00023013,2]
[358646961,1745334645378,-152.0,0.00023014,2]
[358646962,1745334645388,-500.0,0.00023014,2]
[358646963,1745334645400,-260.12531393,0.00023014,2]
[358646964,1745334645410,-151.0,0.00023014,2]
[358646965,1745334645419,-198.0,0.00023014,2]
[358646966,1745334645428,-293.18206662,0.00023044,2]
[358646967,1745334645438,-500.0,0.00023124,2]
[358646968,1745334645447,-500.0,0.00023169,2]
[358646969,1745334645458,-1857.5908489,0.0002317,2]
[358646970,1745334645468,-164.96771842,0.00023286,2]
[358646973,1745334645479,-151.0,0.00023287,7]
[358646975,1745334645491,-151.0,0.00023287,7]
[358646977,1745334645502,-151.0,0.00023287,7]
[358646978,1745334645511,-299.99294117,0.00023287,2]
[358646980,1745334645521,-151.0,0.00023287,2]
[358646982,1745334645531,-500.0,0.00023287,2]
[358646984,1745334645541,-500.0,0.00023287,2]
[358646985,1745334645552,-500.0,0.00023287,2]
[358646987,1745334645564,-500.0,0.00023287,2]
[358646989,1745334645574,-535.14,0.00023287,2]
[358646990,1745334645585,-500.0,0.00023287,2]
[358646992,1745334645595,-500.0,0.00023287,2]
[358646994,1745334645604,-500.0,0.00023287,2]
[358646995,1745334645614,-584.44,0.00023287,2]
[358646996,1745334645624,-500.0,0.00023287,2]
[358646998,1745334645634,-519.12,0.00023287,2]
[358646999,1745334645644,-500.0,0.00023287,2]
[358647000,1745334645658,-856.1,0.00023287,2]
[358647001,1745334645668,-535.06,0.00023287,2]
[358647002,1745334645677,-500.0,0.00023287,2]
[358647003,1745334645687,-359.0,0.00023287,3]
[358647004,1745334645698,-359.0,0.00023287,3]
[358647005,1745334645707,-359.0,0.00023287,3]
[358647006,1745334645717,-359.0,0.00023287,3]
[358647007,1745334645727,-503.71455614,0.00023287,3]
[358647008,1745334645737,-319.0,0.00023287,3]
[358647009,1745334645747,-359.0,0.00023287,3]
[358647010,1745334645759,-319.0,0.00023287,3]
[358647011,1745334645770,-359.0,0.00023287,3]
[358647012,1745334645780,-319.0,0.00023287,3]
[358647013,1745334645790,-319.0,0.00023287,3]
[358647014,1745334645800,-319.0,0.00023287,3]
[358647015,1745334645810,-319.0,0.00023287,3]
[358647016,1745334645819,-319.0,0.00023287,3]
[358647017,1745334645829,-500.0,0.00023287,2]
[358647018,1745334645843,-319.0,0.00023287,3]
[358647019,1745334645852,-319.0,0.00023287,3]
[358647020,1745334645862,-319.0,0.00023287,3]
[358647021,1745334645872,-319.0,0.00023287,3]
[358647022,1745334645882,-319.0,0.00023287,3]
[358647023,1745334645892,-165.05086267,0.00023287,3]
[358647024,1745334645905,-319.0,0.00023287,3]
[358647025,1745334645915,-500.0,0.00023287,2]
[358647026,1745334645925,-672.1,0.00023287,2]
[358647027,1745334645935,-500.0,0.00023287,2]
[358647028,1745334645945,-500.0,0.00023287,2]
[358647029,1745334645955,-3291.59,0.00023287,2]
[358647030,1745334645964,-1353.78,0.00023287,2]
[358647031,1745334645974,-510.96,0.00023287,2]
[358647032,1745334645983,-500.0,0.00023287,2]
[358647033,1745334645993,-3365.52,0.00023287,2]
[358647034,1745334646003,-500.0,0.00023287,2]
[358647035,1745334646012,-283.31993235,0.00023287,2]
[358647036,1745334646022,-500.0,0.00023287,2]
[358647037,1745334646032,-420.73667954,0.00023287,3]
[358647038,1745334646042,-8479.44,0.00023287,2]
[358647039,1745334646052,-500.0,0.00023287,2]
[358647040,1745334646062,-506.86,0.00023287,2]
[358647041,1745334646071,-2355.44,0.00023287,2]
[358647042,1745334646081,-500.0,0.00023287,2]
[358647044,1745334646090,-500.0,0.00023287,2]
[358647045,1745334646100,-500.0,0.00023287,2]
[358647047,1745334646110,-500.0,0.00023287,2]
[358647049,1745334646119,-540.25,0.00023287,2]
[358647050,1745334646129,-500.0,0.00023287,2]
[358647052,1745334646138,-534.5,0.00023287,2]
[358647054,1745334646148,-500.0,0.00023287,2]
[358647056,1745334646157,-500.0,0.00023287,2]
[358647057,1745334646166,-500.0,0.00023287,2]
[358647059,1745334646176,-500.0,0.00023287,2]
[358647061,1745334646186,-1304.33,0.00023287,2]
[358647062,1745334646196,-2433.23,0.00023287,2]
[358647063,1745334646205,-500.0,0.00023287,2]
[358647065,1745334646214,-500.0,0.00023287,2]
[358647067,1745334646229,-500.0,0.00023287,2]
[358647069,1745334646245,-500.0,0.00023287,2]
[358647070,1745334646259,-500.0,0.00023287,2]
[358647071,1745334646274,-500.0,0.00023287,2]
[358647072,1745334646290,-1220.55,0.00023287,2]
[358647073,1745334646303,-500.0,0.00023287,2]
[358647074,1745334646316,-1579.47,0.00023287,2]
[358647075,1745334646331,-500.0,0.00023287,2]
[358647076,1745334646344,-160.0,0.00023287,3]
[358647077,1745334646358,-554.32,0.00023287,2]
[358647078,1745334646373,-151.0,0.00023287,7]
[358647079,1745334646386,-4450.75,0.00023287,2]
[358647080,1745334646400,-516.69,0.00023287,2]
[358647081,1745334646414,-500.0,0.00023287,2]
[358647082,1745334646429,-359.0,0.00023287,3]
[358647083,1745334646443,-826.79,0.00023287,2]
[358647084,1745334646455,-500.0,0.00023287,2]
[358647085,1745334646468,-500.0,0.00023287,2]
[358647086,1745334646482,-722.115994,0.0002337,2]
[358647087,1745334646498,-722.657589,0.0002337,2]
[358647088,1745334646511,-361.3287945,0.0002337,2]
[358647089,1745334646526,-166.655,0.00023465,2]
[358647090,1745334646540,-150.336,0.00023492,2]
[358647091,1745334646553,-706.0,0.00023492,2]
[358647092,1745334646564,-544.0,0.00023492,2]
[358647093,1745334646576,-259.47357438,0.00023532,2]
[358647094,1745334646589,-233.43895437,0.00023532,2]
[358647095,1745334646601,-500.0,0.00023561,2]
[358647096,1745334646614,-500.0,0.00023561,2]
[358647097,1745334646627,-500.0,0.00023561,2]
[358647098,1745334646640,-500.0,0.00023561,2]
[358647099,1745334646657,-500.0,0.00023561,2]
[358647100,1745334646671,-500.0,0.00023561,2]
[358647101,1745334646685,-500.0,0.00023561,2]
[358647102,1745334646698,-500.0,0.00023561,2]
[358647103,1745334646712,-266.0,0.00023561,2]
[358647104,1745334646727,-151.0,0.00023561,7]
[358647105,1745334646738,-158.55,0.00023561,7]
[358647106,1745334646749,-158.55,0.00023561,7]
[358647107,1745334646760,-151.0,0.00023561,7]
[358647108,1745334646772,-334.787569,0.00023561,2]
[358647109,1745334646785,-334.787569,0.00023561,2]
[358647110,1745334646800,-171.56904505,0.00023561,2]
[358647111,1745334646815,-360.39953,0.00023561,7]
[358647112,1745334646827,-360.39953,0.00023561,7]
[358647113,1745334646838,-500.0,0.00023561,2]
[358647114,1745334646850,-500.0,0.00023561,2]
[358647115,1745334646862,-152.973778,0.00023561,7]
[358647116,1745334646876,-500.0,0.00023561,2]
[358647117,1745334646890,-207.788558,0.00023561,7]
[358647118,1745334646903,-207.788558,0.00023561,7]
[358647119,1745334646914,-535.14,0.00023561,2]
[358647120,1745334646925,-436.37247605,0.00023561,2]
[358647121,1745334646938,-500.0,0.00023561,2]
[358647122,1745334646949,-151.0,0.00023561,7]
[358647123,1745334646961,-500.0,0.00023561,2]
[358647124,1745334646973,-584.44,0.00023561,2]
[358647125,1745334646985,-383.954216,0.00023561,7]
[358647126,1745334646998,-500.0,0.00023561,2]
[358647127,1745334647010,-383.954216,0.00023561,7]
[358647128,1745334647022,-519.12,0.00023561,2]
[358647129,1745334647034,-500.0,0.00023561,2]
[358647130,1745334647046,-155.685092,0.00023561,7]
[358647131,1745334647058,-151.0,0.00023561,7]
[358647132,1745334647070,-151.0,0.00023561,7]
[358647133,1745334647082,-151.0,0.00023561,7]
[358647134,1745334647094,-151.0,0.00023561,7]
[358647135,1745334647106,-856.1,0.00023561,2]
[358647136,1745334647120,-535.06,0.00023561,2]
[358647137,1745334647132,-500.0,0.00023561,2]
[358647138,1745334647144,-151.0,0.00023561,7]
[358647139,1745334647159,-214.214128,0.00023561,7]
[358647140,1745334647170,-214.214128,0.00023561,7]
[358647141,1745334647183,-500.0,0.00023561,2]
[358647142,1745334647195,-500.0,0.00023561,2]
[358647143,1745334647208,-672.1,0.00023561,2]
[358647145,1745334647220,-500.0,0.00023561,2]
[358647146,1745334647232,-500.0,0.00023561,2]
[358647147,1745334647244,-3291.59,0.00023561,2]
[358647148,1745334647257,-1353.78,0.00023561,2]
[358647149,1745334647269,-1131.810825,0.00023561,7]
[358647150,1745334647280,-1131.810825,0.00023561,7]
[358647151,1745334647292,-151.0,0.00023561,7]
[358647152,1745334647304,-510.96,0.00023561,2]
[358647153,1745334647316,-500.0,0.00023561,2]
[358647154,1745334647329,-3365.52,0.00023561,2]
[358647155,1745334647341,-500.0,0.00023561,2]
[358647156,1745334647354,-500.0,0.00023561,2]
[358647158,1745334647367,-8479.44,0.00023561,2]
[358647159,1745334647380,-500.0,0.00023561,2]
[358647160,1745334647392,-506.86,0.00023561,2]
[358647161,1745334647409,-2355.44,0.00023561,2]
[358647162,1745334647421,-500.0,0.00023561,2]
[358647163,1745334647433,-500.0,0.00023561,2]
[358647164,1745334647445,-416.8641642,0.00023561,2]
[358647165,1745334647458,-500.0,0.00023561,2]
[358647166,1745334647470,-540.25,0.00023561,2]
[358647167,1745334647482,-500.0,0.00023561,2]
[358647168,1745334647494,-534.5,0.00023561,2]
[358647169,1745334647508,-500.0,0.00023561,2]
[358647170,1745334647520,-500.0,0.00023561,2]
[358647171,1745334647533,-155.91063344,0.00023561,2]
[358647172,1745334647546,-500.0,0.00023561,2]
[358647173,1745334647558,-1304.33,0.00023561,2]
[358647174,1745334647572,-2433.23,0.00023561,2]
[358647175,1745334647585,-500.0,0.00023561,2]
[358647176,1745334647598,-500.0,0.00023561,2]
[358647177,1745334647611,-409.71948904,0.00023561,2]
[358647178,1745334647624,-500.0,0.00023561,2]
[358647179,1745334647635,-500.0,0.00023561,2]
[358647180,1745334647645,-500.0,0.00023561,2]
[358647181,1745334647657,-1220.55,0.00023561,2]
[358647182,1745334647667,-500.0,0.00023561,2]
[358647183,1745334647678,-1579.47,0.00023561,2]
[358647184,1745334647688,-500.0,0.00023561,2]
[358647185,1745334647698,-554.32,0.00023561,2]
[358647186,1745334647708,-4450.75,0.00023561,2]
[358647187,1745334647719,-516.69,0.00023561,2]
[358647188,1745334647729,-500.0,0.00023561,2]
[358647189,1745334647739,-826.79,0.00023561,2]
[358647190,1745334647748,-500.0,0.00023561,2]
[358647191,1745334647758,-500.0,0.00023561,2]
[358647192,1745334647768,-500.0,0.00023562,2]
[358647193,1745334647777,-198.53764303,0.00023562,2]
[358647194,1745334647787,-151.0,0.000236,7]
[358647195,1745334647797,-500.0,0.00023668,2]
[358647196,1745334647806,-300.0,0.00023668,2]
[358647197,1745334647816,-481.25447053,0.00023668,2]
[358647198,1745334647825,-500.0,0.00023668,2]
[358647199,1745334648050,-500.0,0.00023668,2]
[358647200,1745334648074,-500.0,0.00023668,2]
[358647201,1745334648084,-500.0,0.00023717,2]
[358647202,1745334648094,-500.0,0.00023717,2]
[358647203,1745334648104,-500.0,0.00023717,2]
[358647204,1745334648114,-500.0,0.00023717,2]
[358647205,1745334648124,-505.18792042,0.00023717,2]
[358647206,1745334648133,-500.73159819,0.00023717,2]
[358647207,1745334648143,-177.92986561,0.00023717,2]
[358647208,1745334648155,-500.0,0.00023717,2]
[358647209,1745334648165,-500.0,0.00023717,2]
[358647210,1745334648175,-500.0,0.00023772,2]
[358647211,1745334648185,-19121.62686592,0.000238,4]
[358647212,1745334648195,-151.0,0.000238,7]
[358647213,1745334648204,-151.0,0.000238,7]
[358647214,1745334648214,-151.0,0.000238,7]
[358647215,1745334648223,-151.0,0.00023835,7]
[358647216,1745334648233,-864.530405,0.00023835,7]
[358647217,1745334648243,-864.530405,0.00023835,7]
[358647218,1745334648252,-158.55,0.00023835,7]
[358647219,1745334648265,-158.55,0.00023835,7]
[358647220,1745334648274,-151.0,0.00023835,7]
[358647221,1745334648284,-151.0,0.00023835,7]
[358647222,1745334648294,-151.0,0.00023835,7]
[358647223,1745334648303,-334.787569,0.00023835,2]
[358647224,1745334648312,-334.787569,0.00023835,2]
[358647225,1745334648321,-156.292858,0.00023835,7]
[358647226,1745334648331,-1445.553093,0.00023835,2]
[358647227,1745334648341,-1445.553093,0.00023835,2]
[358647228,1745334648357,-151.0,0.00023835,7]
[358647229,1745334648368,-500.0,0.00023835,2]
[358647230,1745334648378,-500.0,0.00023835,2]
[358647231,1745334648388,-500.0,0.00023835,2]
[358647232,1745334648398,-162.216206,0.00023835,7]
[358647233,1745334648413,-162.216206,0.00023835,7]
[358647234,1745334648425,-535.14,0.00023835,2]
[358647235,1745334648435,-500.0,0.00023835,2]
[358647236,1745334648446,-500.0,0.00023835,2]
[358647237,1745334648456,-584.44,0.00023835,2]
[358647238,1745334648466,-500.0,0.00023835,2]
[358647239,1745334648478,-519.12,0.00023835,2]
[358647240,1745334648492,-500.0,0.00023835,2]
[358647241,1745334648504,-856.1,0.00023835,2]
[358647242,1745334648514,-535.06,0.00023835,2]
[358647243,1745334648525,-500.0,0.00023835,2]
[358647244,1745334648535,-500.0,0.00023835,2]
[358647245,1745334648545,-500.0,0.00023835,2]
[358647246,1745334648554,-672.1,0.00023835,2]
[358647247,1745334648564,-500.0,0.00023835,2]
[358647248,1745334648574,-500.0,0.00023835,2]
[358647249,1745334648584,-3291.59,0.00023835,2]
[358647250,1745334648595,-1353.78,0.00023835,2]
[358647251,1745334648605,-510.96,0.00023835,2]
[358647252,1745334648614,-500.0,0.00023835,2]
[358647253,1745334648624,-3365.52,0.00023835,2]
[358647254,1745334648634,-500.0,0.00023835,2]
[358647255,1745334648644,-500.0,0.00023835,2]
[358647256,1745334648657,-8479.44,0.00023835,2]
[358647257,1745334648667,-500.0,0.00023835,2]
[358647258,1745334648677,-506.86,0.00023835,2]
[358647259,1745334648687,-2355.44,0.00023835,2]
[358647260,1745334648697,-500.0,0.00023835,2]
[358647261,1745334648706,-500.0,0.00023835,2]
[358647262,1745334648716,-500.0,0.00023835,2]
[358647263,1745334648726,-540.25,0.00023835,2]
[358647264,1745334648736,-500.0,0.00023835,2]
[358647265,1745334648745,-534.5,0.00023835,2]
[358647266,1745334648755,-500.0,0.00023835,2]
[358647267,1745334648765,-421.23666537,0.00023835,2]
[358647268,1745334648774,-500.0,0.00023835,2]
[358647269,1745334648784,-1304.33,0.00023835,2]
[358647270,1745334648794,-2433.23,0.00023835,2]
[358647271,1745334648804,-500.0,0.00023835,2]
[358647272,1745334648813,-500.0,0.00023835,2]
[358647273,1745334648823,-500.0,0.00023835,2]
[358647274,1745334648833,-500.0,0.00023835,2]
[358647275,1745334648843,-500.0,0.00023835,2]
[358647276,1745334648852,-1220.55,0.00023835,2]
[358647277,1745334648861,-500.0,0.00023835,2]
[358647278,1745334648871,-1579.47,0.00023835,2]
[358647279,1745334648881,-500.0,0.00023835,2]
[358647280,1745334648891,-554.32,0.00023835,2]
[358647281,1745334648900,-4450.75,0.00023835,2]
[358647282,1745334648910,-516.69,0.00023835,2]
[358647283,1745334648920,-500.0,0.00023835,2]
[358647284,1745334648929,-826.79,0.00023835,2]
[358647285,1745334648940,-500.0,0.00023835,2]
[358647286,1745334648949,-500.0,0.00023835,2]
[358647287,1745334648959,-600.0,0.00023885,2]
[358647288,1745334648969,-303.0,0.000239,2]
[358647289,1745334648979,-409.71731474,0.0002399,2]
[358647290,1745334648990,-1675.02439174,0.00024,2]
[358647291,1745334649000,-420.73667954,0.00024,7]
[358647292,1745334649010,-160.0,0.00024,7]
[358647293,1745334649019,-151.0,0.00024109,7]
[358647294,1745334649029,-151.0,0.00024109,7]
[358647295,1745334649039,-151.0,0.00024109,7]
[358647296,1745334649048,-151.0,0.00024109,7]
[358647297,1745334649058,-151.0,0.00024109,7]
[358647298,1745334649068,-156.612074,0.00024109,7]
[358647299,1745334649077,-500.0,0.00024109,2]
[358647300,1745334649087,-500.0,0.00024109,2]
[358647301,1745334649097,-500.0,0.00024109,2]
[358647302,1745334649106,-535.14,0.00024109,2]
[358647303,1745334649116,-500.0,0.00024109,2]
[358647304,1745334649126,-500.0,0.00024109,2]
[358647305,1745334649135,-584.44,0.00024109,2]
[358647306,1745334649145,-500.0,0.00024109,2]
[358647307,1745334649157,-519.12,0.00024109,2]
[358647308,1745334649166,-500.0,0.00024109,2]
[358647309,1745334649176,-856.1,0.00024109,2]
[358647310,1745334649186,-535.06,0.00024109,2]
[358647311,1745334649195,-500.0,0.00024109,2]
[358647312,1745334649205,-500.0,0.00024109,2]
[358647313,1745334649214,-500.0,0.00024109,2]
[358647314,1745334649223,-672.1,0.00024109,2]
[358647315,1745334649233,-500.0,0.00024109,2]
[358647316,1745334649243,-500.0,0.00024109,2]
[358647317,1745334649252,-3291.59,0.00024109,2]
[358647318,1745334649261,-1353.78,0.00024109,2]
[358647319,1745334649271,-510.96,0.00024109,2]
[358647320,1745334649281,-500.0,0.00024109,2]